fUSD/lending_fUSD_20250606
["ID","MTS","AMOUNT","RATE_DAILY","PERIOD"]
[364676656,1749195094990,-732.66,0.00030986,7]
[364676657,1749195095000,-399.2472697,0.00030986,7]
[364676658,1749195095009,-2684.8,0.00030986,7]
[364676659,1749195095019,-690.02,0.00030986,7]
[364676660,1749195095030,-749.27,0.00030986,7]
[364676661,1749195095039,-1631.58,0.00030986,7]
[364676662,1749195095049,-621.64,0.00030986,7]
[364676663,1749195095058,-535.31,0.00030986,7]
[364676664,1749195095068,-1384.95,0.00030986,7]
[364676665,1749195095077,-1562.21,0.00030986,7]
[364676666,1749195095087,-480.0,0.00030986,7]
[364676667,1749195095097,-18294.64,0.00030986,7]
[364676668,1749195095106,-894.81,0.00030986,7]
[364676669,1749195095116,-1115.23,0.00030986,7]
[364676670,1749195095126,-4575.79,0.00030986,7]
[364676671,1749195095135,-480.0,0.00030986,7]
[364676672,1749195095145,-854.68,0.00030986,7]
[364676673,1749195095155,-695.12,0.00030986,7]
[364676674,1749195095166,-650.15,0.00030986,7]
[364676675,1749195095176,-586.88,0.00030986,7]
[364676676,1749195095185,-6273.93,0.00030986,7]
[364676677,1749195095376,-784.29,0.00030986,7]
[364676678,1749195095401,-501.87,0.00030986,7]
[364676679,1749195095413,-480.0,0.00030986,7]
[364676680,1749195095424,-156.547573,0.00030986,7]
[364676681,1749195095434,-480.0,0.00030986,7]
[364676682,1749195095445,-480.0,0.00030986,7]
[364676683,1749195095455,-1393.37,0.00030986,7]
[364676684,1749195095466,-506.1114017,0.00030986,7]
[364676685,1749195095476,-480.0,0.00030986,7]
[364676686,1749195095486,-1018.89,0.00030986,7]
[364676687,1749195095496,-2222.98,0.00030986,7]
[364676688,1749195095507,-701.3,0.00030986,7]
[364676689,1749195095519,-480.0,0.00030986,7]
[364676690,1749195095530,-838.48,0.00030986,7]
[364676691,1749195095540,-2372.89,0.00030986,7]
[364676692,1749195095550,-894.02,0.00030986,7]
[364676693,1749195095560,-7451.07,0.00030986,7]
[364676694,1749195095571,-2119.73,0.00030986,7]
[364676695,1749195095581,-1031.14,0.00030986,7]
[364676696,1749195095591,-480.0,0.00030986,7]
[364676697,1749195095601,-480.0,0.00030986,7]
[364676698,1749195095612,-480.0,0.00030986,7]
[364676699,1749195095622,-953.26,0.00030986,7]
[364676700,1749195095632,-545.98,0.00030986,7]
[364676701,1749195095642,-981.45,0.00030986,7]
[364676702,1749195095652,-665.71,0.00030986,7]
[364676703,1749195095662,-1003.28,0.00030986,7]
[364676704,1749195095672,-502.03,0.00030986,7]
[364676705,1749195095683,-599.66,0.00030986,7]
[364676706,1749195095693,-3222.48,0.00030986,7]
[364676707,1749195095703,-642.87,0.00030986,2]
[364676708,1749195095712,-895.35,0.00030986,7]
[364676709,1749195095721,-13954.29,0.00030986,7]
[364676710,1749195095731,-821.63,0.00030986,7]
[364676711,1749195095741,-1239.07,0.00030986,7]
[364676712,1749195095751,-2507.72,0.00030986,7]
[364676713,1749195095760,-1029.37,0.00030986,7]
[364676714,1749195095770,-21187.12,0.00030986,7]
[364676715,1749195095779,-1188.22,0.00030986,7]
[364676716,1749195095789,-1023.07,0.00030986,2]
[364676717,1749195095798,-1061.28,0.00030986,7]
[364676718,1749195095810,-4145.62,0.00030986,7]
[364676719,1749195095820,-585.37,0.00030986,7]
[364676720,1749195095830,-480.0,0.00030986,7]
[364676721,1749195095841,-546.00460795,0.00030986,7]
[364676722,1749195095851,-867.72,0.00030986,7]
[364676723,1749195095860,-28177.07381035,0.00030986,7]
[364676724,1749195097476,-689.57391771,0.00026657,2]
[364676725,1749195097496,-4441.77193837,0.00026657,2]
[364676726,1749195097507,-1371.75852642,0.00026657,2]
[364676727,1749195097517,-5268.07572,0.00028,7]
[364676728,1749195097526,-5268.07572,0.0003,7]
[364676729,1749195097537,-300.0,0.00030163,2]
[364676730,1749195097547,-484.73129032,0.00030164,7]
[364676731,1749195097622,-480.0,0.00030164,7]
[364676732,1749195097632,-726.44,0.00030164,7]
[364676733,1749195097642,-480.0,0.00030164,7]
[364676734,1749195097651,-480.0,0.00030164,7]
[364676735,1749195097661,-480.0,0.00030164,7]
[364676736,1749195097670,-151.0,0.00030164,2]
[364676737,1749195097680,-480.0,0.00030164,7]
[364676738,1749195097689,-480.0,0.00030164,7]
[364676739,1749195097699,-480.0,0.00030164,7]
[364676740,1749195097708,-946.15,0.00030164,7]
[364676741,1749195097718,-494.04549238,0.00030164,7]
[364676742,1749195097727,-5268.07572,0.00030164,7]
[364676743,1749195097737,-458.6407208,0.00030164,7]
[364676744,1749195097746,-5268.07572,0.00030164,7]
[364676745,1749195097756,-480.0,0.00030164,7]
[364676746,1749195097765,-2733.14,0.00030164,7]
[364676747,1749195097775,-388.83195538,0.00030164,7]
[364676748,1749195097784,-602.79866779,0.00030164,7]
[364676749,1749195097794,-5268.07572,0.00030214,7]
[364676750,1749195097805,-496.64,0.00030328,7]
[364676751,1749195097817,-726.44,0.00030328,7]
[364676752,1749195097827,-480.0,0.00030328,7]
[364676753,1749195097836,-480.0,0.00030328,7]
[364676754,1749195097846,-480.0,0.00030328,7]
[364676755,1749195097856,-485.80195335,0.00030328,7]
[364676756,1749195097866,-480.0,0.00030328,7]
[364676757,1749195097875,-946.15,0.00030328,7]
[364676758,1749195097887,-5268.07572,0.00030328,7]
[364676759,1749195097897,-3033.97707356,0.00030328,7]
[364676760,1749195100757,1771.0,0.0003561,120]
[364676761,1749195156241,210.46533733,0.00019999,2]
[364676762,1749195201532,160.47,0.00013699,2]
[364676764,1749195264617,-204.90605905,0.000279,18]
[364676765,1749195264650,-204.90605892,0.00028757,19]
[364676766,1749195276307,-151.0,0.00028,7]
[364676767,1749195276330,-1656.20892,0.00028,7]
[364676768,1749195276353,-1656.20892,0.00028,7]
[364676769,1749195276376,-335.222175,0.00028,7]
[364676770,1749195276399,-151.0,0.00028,7]
[364676771,1749195276422,-151.0,0.00028,7]
[364676772,1749195276445,-335.222175,0.00028,7]
[364676773,1749195276468,-1086.497252,0.00028,7]
[364676774,1749195276492,-1086.497252,0.00028,7]
[364676775,1749195276514,-151.0,0.00028,7]
[364676776,1749195276537,-329.982477,0.00028,7]
[364676777,1749195276559,-329.982477,0.00028,7]
[364676778,1749195276583,-151.0,0.00028,7]
[364676779,1749195291834,19.36623403,0.00028932,7]
[364676781,1749195359091,510.25975,0.0003561,120]
[364676782,1749195440408,160.09,0.00019999,2]
[364676783,1749195480877,700.0,0.00035616,120]
[364676784,1749195681996,4036.32,0.00035616,120]
[364676786,1749195891314,1803.32,0.00035616,120]
[364676790,1749195999972,500.0,0.00035616,120]
[364676817,1749196086294,500.0,0.00035616,120]
[364676821,1749196232039,-160.09,0.00021369,2]
[364676822,1749196232049,-825.32365101,0.00021743,2]
[364676823,1749196232060,-252.67634899,0.00021743,2]
[364676824,1749196232070,-160.09,0.00022739,2]
[364676825,1749196232079,-1078.0,0.00022887,2]
[364676826,1749196232089,-1078.0,0.00024092,2]
[364676827,1749196232098,-160.09,0.00024109,2]
[364676828,1749196232107,-204.90605892,0.000249,12]
[364676829,1749196232116,-155.0,0.00025,7]
[364676830,1749196232126,-1078.0,0.0002536,2]
[364676831,1749196232135,-160.09,0.00025479,2]
[364676832,1749196232145,-377.33,0.00025626,2]
[364676833,1749196232154,-204.90605892,0.00026067,14]
[364676834,1749196232164,-536.1178544,0.00026241,2]
[364676835,1749196232229,-663.8821456,0.00026241,2]
[364676836,1749196232239,-1078.0,0.00026627,2]
[364676837,1749196232252,-160.09,0.00026849,2]
[364676838,1749196232262,-204.90605892,0.00027233,16]
[364676839,1749196232271,-1000.0,0.00027376,2]
[364676840,1749196232280,-636.94,0.00027396,2]
[364676841,1749196232291,-200.0,0.00027408,2]
[364676842,1749196232300,-250.0,0.0002742,2]
[364676843,1749196232309,-162.89,0.00027441,2]
[364676844,1749196232320,-200.0,0.00027765,2]
[364676845,1749196232330,-362.98,0.00027792,2]
[364676846,1749196232339,-377.33,0.0002789,2]
[364676847,1749196232348,-173.32,0.00027902,2]
[364676848,1749196232357,-1078.0,0.00027959,5]
[364676849,1749196232366,-482.0,0.00027969,30]
[364676850,1749196232377,-151.0,0.00028026,2]
[364676851,1749196232387,-151.0,0.00028026,2]
[364676852,1749196232396,-200.55633573,0.00028026,2]
[364676853,1749196232406,-3269.62535905,0.00028043,2]
[364676854,1749196232419,-1296.28534729,0.00028043,2]
[364676855,1749196232442,-10013.82392334,0.00028043,2]
[364676856,1749196232453,-881.71597347,0.00028043,2]
[364676857,1749196232469,-9107.2982209,0.00028043,2]
[364676858,1749196237348,160.47,0.00013699,2]
[364676863,1749196239398,-1340.74399525,0.00028043,2]
[364676864,1749196239412,-9474.4071807,0.00028043,2]
[364676865,1749196239422,-160.09,0.00028218,2]
[364676866,1749196239432,-204.90605892,0.000284,19]
[364676867,1749196239442,-1600.0,0.00028518,2]
[364676868,1749196239452,-200.0,0.00028552,2]
[364676869,1749196239462,-157.29,0.0002868,2]
[364676870,1749196239476,-1000.0,0.00028697,2]
[364676871,1749196239487,-507.15665001,0.00028697,2]
[364676872,1749196239497,-300.0,0.00028697,2]
[364676873,1749196239509,-800.0,0.00028697,2]
[364676874,1749196239518,-300.0,0.00028697,2]
[364676875,1749196239528,-800.0,0.00028697,2]
[364676876,1749196239538,-500.0,0.00028697,2]
[364676877,1749196239547,-300.0,0.00028697,2]
[364676878,1749196239562,-800.0,0.00028697,2]
[364676879,1749196239572,-500.0,0.00028697,2]
[364676880,1749196239582,-300.0,0.00028697,2]
[364676881,1749196239592,-500.0,0.00028697,2]
[364676882,1749196239602,-408.58554556,0.00028697,2]
[364676883,1749196239611,-300.0,0.00028697,2]
[364676884,1749196239621,-668.65185757,0.00028697,2]
[364676885,1749196239631,-500.0,0.00028697,2]
[364676886,1749196239641,-340.41547968,0.00028697,2]
[364676888,1749196239651,-500.0,0.00028697,2]
[364676890,1749196239662,-163.68812032,0.00028697,2]
[364676891,1749196239673,-500.0,0.00028697,2]
[364676893,1749196239684,-500.0,0.00028697,2]
[364676895,1749196239694,-500.0,0.00028697,2]
[364676897,1749196239704,-500.0,0.00028697,2]
[364676899,1749196239713,-500.0,0.00028697,2]
[364676901,1749196239723,-151.0,0.00028697,2]
[364676903,1749196239734,-500.0,0.00028697,2]
[364676905,1749196239743,-500.0,0.00028697,2]
[364676907,1749196239753,-500.0,0.00028697,2]
[364676909,1749196239762,-500.0,0.00028697,2]
[364676911,1749196239771,-500.0,0.00028697,2]
[364676913,1749196239781,-500.0,0.00028697,2]
[364676915,1749196239791,-500.0,0.00028697,2]
[364676917,1749196239801,-500.0,0.00028697,2]
[364676919,1749196239810,-500.0,0.00028697,2]
[364676921,1749196239820,-222.47485641,0.00028697,2]
[364676923,1749196239829,-207.4,0.00028697,2]
[364676925,1749196239838,-156.33,0.0002874,2]
[364676927,1749196239848,-162.89,0.00028813,2]
[364676929,1749196239858,-1500.0,0.00028835,2]
[364676931,1749196239868,-10065.15825083,0.00028898,2]
[364676934,1749196239885,-8355.461751,0.00028898,2]
[364676936,1749196239898,-5479.37999817,0.00028898,2]
[364676938,1749196239908,-130.63376597,0.00028932,7]
[364676940,1749196239918,-209.31,0.00028992,2]
[364676942,1749196239928,-161.4,0.00029245,2]
[364676944,1749196239937,-1131.06,0.00029348,2]
[364676946,1749196239947,-208.37972677,0.00029357,5]
[364676948,1749196239956,-168.71,0.00029378,2]
[364676950,1749196239965,-204.90605892,0.00029567,21]
[364676953,1749196239975,-160.09,0.00029588,2]
[364676955,1749196239985,-600.0,0.000296,10]
[364676957,1749196239994,-1200.0,0.000297,10]
[364676959,1749196240005,-1800.0,0.000298,10]
[364676961,1749196240014,-214.15,0.000299,2]
[364676963,1749196240023,-514.8,0.000299,2]
[364676965,1749196240033,-2400.0,0.000299,10]
[364676967,1749196240043,-206.45,0.000299,2]
[364676969,1749196240052,-2126.25782519,0.00029911,2]
[364676971,1749196240062,-170.76,0.00029989,2]
[364676973,1749196240071,-18922.30344898,0.0002999,2]
[364677008,1749196240434,-1325.3118778,0.0002999,2]
[364677010,1749196240445,-572.93346424,0.0002999,2]
[364677035,1749196246175,-27251.45472953,0.0002999,2]
[364677036,1749196246349,-3186.00957061,0.0002999,2]
[364677039,1749196309020,500.0,0.00035616,120]
[364677040,1749196648751,980.94485654,0.00035616,120]
[364677043,1749196857417,5016.20435867,0.0003561,120]
[364677073,1749197340341,2853.73888758,0.0002374,2]
[364677074,1749197340364,2853.73888758,0.0002374,2]
[364677075,1749197340385,1862.52222484,0.0002374,2]
[364677076,1749197362821,50000.0,0.00035616,120]
[364677087,1749197432283,-300.0,0.000259,9]
[364677088,1749197432293,-966.82198727,0.000259,7]
[364677089,1749197432305,-1585.53784902,0.000259,7]
[364677090,1749197432314,-2008.67572362,0.00026273,2]
[364677091,1749197432324,-2403.61784923,0.00026274,2]
[364677092,1749197432336,-411.8444199,0.00026274,2]
[364677093,1749197432368,-188.75519071,0.00026274,2]
[364677094,1749197432378,-156.12940259,0.00026274,2]
[364677095,1749197432388,-300.0,0.00026363,2]
[364677096,1749197432398,-862.41299415,0.00026364,2]
[364677097,1749197432559,-2973.11012565,0.00026364,2]
[364677098,1749197432638,-322.353,0.00026364,2]
[364677107,1749197438390,-168.35381065,0.00026274,2]
[364677108,1749197438400,-305.43077666,0.00026364,2]
[364677109,1749197438412,-1471.80078007,0.00026364,2]
[364677110,1749197438424,-2076.70402768,0.00026364,2]
[364677111,1749197438469,-633.8232159,0.00026364,2]
[364677112,1749197438551,-533.675025,0.00026364,2]
[364677140,1749197440714,-156054.04034789,0.00026364,2]
[364677141,1749197440724,-521.72942323,0.00026373,2]
[364677142,1749197440735,-500.0,0.00026373,2]
[364677143,1749197440745,-500.0,0.00026373,2]
[364677144,1749197440755,-500.0,0.00026373,2]
[364677145,1749197440765,-160.93875314,0.00026373,2]
[364677146,1749197440775,-501.9761611,0.00026373,2]
[364677147,1749197440784,-500.0,0.00026373,2]
[364677148,1749197440794,-500.0,0.00026373,2]
[364677149,1749197440804,-500.0,0.00026373,2]
[364677150,1749197440814,-250.0,0.00026373,2]
[364677151,1749197440823,-603953.34338,0.00026374,7]
[364677152,1749197440833,-427.17,0.00026374,2]
[364677153,1749197440843,-501.35969813,0.000264,2]
[364677154,1749197440852,-2008.67572354,0.00026731,2]
[364677155,1749197440862,-3004.21745977,0.00026735,2]
[364677156,1749197440871,-211.97137628,0.000269,16]
[364677157,1749197440882,-2008.67572354,0.00027189,2]
[364677158,1749197440891,-3004.21745977,0.00027196,2]
[364677159,1749197440901,-500.0,0.00027397,2]
[364677160,1749197440911,-462.95632578,0.00027397,2]
[364677161,1749197440921,-500.0,0.00027397,2]
[364677162,1749197440933,-500.0,0.00027397,2]
[364677163,1749197440944,-500.0,0.00027397,2]
[364677164,1749197440954,-500.0,0.00027397,2]
[364677165,1749197440965,-500.0,0.00027397,2]
[364677166,1749197440976,-500.0,0.00027397,2]
[364677167,1749197440987,-162.89,0.00027397,2]
[364677168,1749197440997,-159.74111079,0.000275,5]
[364677169,1749197441007,-200.0,0.000275,3]
[364677170,1749197441017,-1000.0,0.00027511,2]
[364677171,1749197441028,-2008.67572354,0.00027646,2]
[364677172,1749197441038,-3004.21745977,0.00027656,2]
[364677173,1749197441048,-200.0,0.00028,7]
[364677174,1749197441058,-4673.50682665,0.00028,2]
[364677175,1749197441068,-2008.67572354,0.00028104,2]
[364677176,1749197441079,-3004.21745977,0.00028117,2]
[364677177,1749197441089,-211.97137624,0.00028122,18]
[364677178,1749197441100,-250.0,0.00028463,2]
[364677179,1749197441111,-189.15861836,0.000285,2]
[364677180,1749197441122,-36718.5222873,0.00028552,2]
[364677181,1749197441132,-2008.67572354,0.00028562,2]
[364677182,1749197441142,-36718.5222873,0.00028563,2]
[364677183,1749197441152,-158.71,0.00028563,2]
[364677184,1749197441162,-170.76,0.00028572,2]
[364677185,1749197441174,-170.76,0.00028572,2]
[364677186,1749197441184,-170.76,0.00028572,2]
[364677187,1749197441194,-170.76,0.00028572,2]
[364677188,1749197441204,-170.76,0.00028572,2]
[364677189,1749197441214,-170.76,0.00028572,2]
[364677190,1749197441224,-103963.651622,0.00028573,7]
[364677191,1749197441234,-167.02,0.00028573,2]
[364677192,1749197441245,-3004.21745977,0.00028578,2]
[364677193,1749197441255,-18359.2611437,0.0002859,2]
[364677194,1749197441266,-500.0,0.000286,2]
[364677195,1749197441276,-500.0,0.000286,5]
[364677196,1749197441286,-500.0,0.000286,5]
[364677197,1749197441296,-409.80880066,0.000286,5]
[364677198,1749197441306,-501.50217081,0.000286,5]
[364677199,1749197441317,-218.900713,0.000286,2]
[364677200,1749197441327,-427.17,0.00028638,2]
[364677201,1749197441336,-1977.25352396,0.00028681,2]
[364677202,1749197441346,-495.74,0.00028707,2]
[364677203,1749197441356,-497.08,0.00028707,2]
[364677204,1749197441365,-503.81,0.00028707,2]
[364677205,1749197441375,-490.62,0.00028707,2]
[364677206,1749197441385,-495.57,0.00028707,2]
[364677207,1749197441395,-501.33,0.00028707,2]
[364677208,1749197441404,-507.85,0.00028707,2]
[364677209,1749197441414,-508.24,0.00028707,2]
[364677210,1749197441423,-500.45,0.00028707,2]
[364677211,1749197441433,-507.6,0.00028715,2]
[364677212,1749197441442,-509.25,0.00028715,2]
[364677213,1749197441452,-504.9,0.00028715,2]
[364677214,1749197441462,-491.38,0.00028728,2]
[364677215,1749197441471,-497.18,0.00028728,2]
[364677216,1749197441481,-495.28,0.00028728,2]
[364677217,1749197441491,-505.23,0.00028728,2]
[364677218,1749197441501,-490.96,0.00028753,2]
[364677219,1749197441510,-495.33,0.00028753,2]
[364677220,1749197441520,-508.24,0.00028753,2]
[364677221,1749197441530,-505.1,0.00028753,2]
[364677222,1749197441539,-506.9,0.00028799,2]
[364677223,1749197441550,-492.53,0.00028799,2]
[364677224,1749197441559,-503.36,0.00028799,2]
[364677225,1749197441569,-500.78,0.00028799,2]
[364677226,1749197441578,-150.7,0.00028799,2]
[364677227,1749197441588,-501.36,0.00028799,2]
[364677228,1749197441599,-504.59,0.00028799,2]
[364677229,1749197441610,-491.04,0.00028799,2]
[364677230,1749197441619,-502.92,0.00028799,2]
[364677231,1749197441629,-496.85,0.00028799,2]
[364677232,1749197441639,-151.52,0.00028799,2]
[364677233,1749197441649,-498.49,0.00028799,2]
[364677234,1749197441662,-504.92,0.00028799,2]
[364677235,1749197441672,-502.73,0.00028799,2]
[364677236,1749197441682,-498.67,0.00028799,2]
[364677237,1749197441691,-314.77,0.00028838,2]
[364677238,1749197441700,-200.0,0.00028839,2]
[364677239,1749197441710,-421.75,0.00028866,30]
[364677240,1749197441719,-18359.2611437,0.00028879,2]
[364677241,1749197441730,-151.0,0.00028882,2]
[364677242,1749197441740,-1528.38185708,0.00028899,2]
[364677243,1749197441749,-600.0,0.000289,10]
[364677244,1749197441759,-167.79,0.000289,2]
[364677245,1749197441769,-207.4,0.0002893,2]
[364677246,1749197441778,-500.0,0.0002893,2]
[364677247,1749197441788,-542.52478044,0.0002893,2]
[364677248,1749197441797,-151.0,0.0002893,2]
[364677249,1749197441807,-18359.2611437,0.00028996,2]
[364677250,1749197441816,-171.77,0.00029,2]
[364677251,1749197441826,-151.26239238,0.00029005,2]
[364677252,1749197441835,-156.55937162,0.00029005,2]
[364677253,1749197441845,-193.9944607,0.00029005,2]
[364677254,1749197441855,-16091.38,0.00029006,2]
[364677255,1749197441864,-2008.67572354,0.0002902,2]
[364677256,1749197441873,-3004.21745977,0.00029039,2]
[364677257,1749197441883,-1500.0,0.0002904,2]
[364677258,1749197441893,-189.15861833,0.00029144,2]
[364677259,1749197441903,-501.22771874,0.00029148,5]
[364677260,1749197441914,-1000.0,0.00029148,5]
[364677261,1749197441923,-211.97137624,0.00029344,20]
[364677262,1749197441934,-150.78,0.00029409,2]
[364677263,1749197441944,-1162.75,0.00029409,2]
[364677264,1749197441954,-359.76,0.00029409,2]
[364677265,1749197441963,-173.85,0.00029409,2]
[364677266,1749197441974,-152.0,0.00029471,3]
[364677267,1749197441984,-2008.67572354,0.00029477,2]
[364677268,1749197441994,-3004.21745977,0.00029499,2]
[364677269,1749197442004,-202.15,0.000295,30]
[364677270,1749197442014,-240.14470149,0.00029565,2]
[364677271,1749197442024,-18359.2611437,0.0002959,2]
[364677272,1749197442033,-852.0,0.00029624,2]
[364677273,1749197442043,-883.0,0.00029624,2]
[364677274,1749197442053,-155.0,0.00029624,2]
[364677275,1749197442062,-4081.0,0.00029624,2]
[364677276,1749197442072,-7017.0,0.00029624,2]
[364677277,1749197442081,-502.38386975,0.00029673,5]
[364677278,1749197442091,-501.05853404,0.00029673,5]
[364677279,1749197442100,-1551.64681967,0.00029696,5]
[364677280,1749197442110,-900.0,0.000297,10]
[364677281,1749197442120,-189.15861833,0.00029788,2]
[364677282,1749197442130,-1200.0,0.000298,10]
[364677283,1749197442140,-18359.2611437,0.0002988,2]
[364677284,1749197442150,-18359.2611437,0.0002989,2]
[364677285,1749197442160,-40888.7413,0.000299,2]
[364677286,1749197442170,-1000.0,0.000299,2]
[364677287,1749197442180,-7315.55,0.000299,2]
[364677288,1749197442189,-1500.0,0.000299,10]
[364677289,1749197442199,-2008.67572354,0.00029935,2]
[364677290,1749197442209,-3004.21745977,0.0002996,2]
[364677291,1749197442219,-159.78811227,0.00029973,5]
[364677292,1749197442230,-179.0,0.00029973,2]
[364677293,1749197442240,-18359.2611437,0.0002998,2]
[364677294,1749197442249,-55077.783431,0.0002998,2]
[364677295,1749197442259,-151.0,0.0002999,2]
[364677296,1749197442269,-3256.94346,0.0002999,2]
[364677297,1749197442278,-300.0,0.00029999,10]
[364677298,1749197442288,-666.0,0.00029999,10]
[364677299,1749197442298,-150.0,0.00029999,2]
[364677300,1749197442307,-150.0,0.00029999,2]
[364677301,1749197442317,-67477.65217609,0.0003,2]
[364677302,1749197442327,-372398.28203,0.0003,2]
[364677303,1749197442337,-208.0,0.0003,30]
[364677304,1749197442347,-9515.0,0.0003,2]
[364677305,1749197442356,-150.0,0.0003,7]
[364677306,1749197442366,-641.14,0.00030006,30]
[364677307,1749197442375,-801.5894,0.00030006,30]
[364677308,1749197442384,-521.44,0.00030028,2]
[364677309,1749197442394,-240.14470147,0.00030043,2]
[364677310,1749197442404,-19060.9448275,0.00030054,2]
[364677311,1749197442413,-334.147904,0.00030056,12]
[364677312,1749197442424,-36724.66892569,0.00030073,2]
[364677313,1749197442435,-214.15,0.000301,2]
[364677314,1749197442445,-514.8,0.000301,2]
[364677315,1749197442454,-206.45,0.000301,2]
[364677316,1749197442464,-7315.55,0.000301,2]
[364677317,1749197442473,-500.0,0.00030136,2]
[364677318,1749197442482,-500.0,0.00030136,7]
[364677319,1749197442492,-500.0,0.00030136,7]
[364677320,1749197442501,-500.80163007,0.00030136,7]
[364677321,1749197442511,-10031.52,0.00030136,7]
[364677322,1749197442520,-10031.52,0.00030136,7]
[364677323,1749197442529,-10031.52,0.00030136,7]
[364677324,1749197442539,-10031.52,0.00030136,7]
[364677325,1749197442548,-10031.52,0.00030136,7]
[364677326,1749197442558,-10031.52,0.00030136,7]
[364677327,1749197442568,-10031.52,0.00030136,7]
[364677328,1749197442577,-10031.52,0.00030136,7]
[364677329,1749197442592,-10031.52,0.00030136,7]
[364677330,1749197442605,-500.0,0.00030136,7]
[364677331,1749197442615,-500.0,0.00030136,7]
[364677332,1749197442625,-500.0,0.00030136,7]
[364677333,1749197442634,-500.0,0.00030136,7]
[364677334,1749197442644,-500.0,0.00030136,7]
[364677335,1749197442656,-500.0,0.00030136,7]
[364677336,1749197442666,-500.0,0.00030136,7]
[364677337,1749197442676,-500.0,0.00030136,7]
[364677338,1749197442685,-500.0,0.00030136,7]
[364677339,1749197442695,-500.0,0.00030136,7]
[364677340,1749197442704,-500.0,0.00030136,7]
[364677341,1749197442714,-182.4,0.00030137,80]
[364677342,1749197442724,-162.89,0.00030137,2]
[364677343,1749197442950,-224.58,0.00030137,2]
[364677344,1749197442961,-230.8295763,0.00030137,60]
[364677345,1749197442971,-288.24941054,0.00030137,5]
[364677346,1749197442981,-10031.52,0.00030163,7]
[364677347,1749197442991,-10031.52,0.00030163,7]
[364677349,1749197443001,-10031.52,0.00030163,7]
[364677350,1749197443011,-10031.52,0.00030163,7]
[364677351,1749197443021,-10031.52,0.00030163,7]
[364677352,1749197443031,-647.20709056,0.00030163,7]
[364677353,1749197443041,-480.0,0.00030164,7]
[364677354,1749197443051,-480.0,0.00030164,7]
[364677355,1749197443063,-435.02125896,0.00030164,7]
[364677356,1749197443072,-480.0,0.00030164,7]
[364677357,1749197443082,-482.88195491,0.00030164,7]
[364677358,1749197443093,-481.850051,0.00030164,7]
[364677359,1749197443103,-151.0,0.00030164,7]
[364677360,1749197443113,-462.15104041,0.00030164,7]
[364677361,1749197443123,-488.6972386,0.00030164,7]
[364677362,1749197443132,-151.0,0.00030164,7]
[364677363,1749197443142,-480.0,0.00030164,7]
[364677364,1749197443152,-424.8448695,0.00030164,7]
[364677365,1749197443162,-504.14501086,0.00030164,7]
[364677367,1749197443172,-151.0,0.00030164,7]
[364677368,1749197443181,-480.0,0.00030164,7]
[364677370,1749197443191,-480.0,0.00030164,7]
[364677372,1749197443200,-373.85584544,0.00030164,7]
[364677373,1749197443210,-480.0,0.00030164,7]
[364677374,1749197443219,-480.0,0.00030164,7]
[364677375,1749197443229,-480.0,0.00030164,7]
[364677376,1749197443238,-480.0,0.00030164,7]
[364677377,1749197443250,-425.57769929,0.00030164,7]
[364677379,1749197443259,-490.96200865,0.00030164,7]
[364677380,1749197443271,-480.0,0.00030164,7]